Cogmind - Beta 10.2 @@@ ROGUE MODE // 2021.02.08 @ 00:19:42 Player: Palikka Result: Destroyed by D-53 Grenadier with Mini Grenade Launcher Performance ------------- Evolutions (0) 0 Regions Visited (2) 400 Robots Destroyed (28) 140 Value Destroyed (462) 462 Prototype IDs (3) 60 Alien Tech Used (0) 0 Bonus (0) 0 TOTAL SCORE: 1062 Bonus ------- None Cogmind --------- Core Integrity 0/250 Matter 295/300 Energy 100/100 System Corruption 0% Temperature Cool (0) Movement Treading (180) Ox1 Location -10/Mines Parts ------- > --- POWER (1) -------- (None) > --- PROPULSION (2) --- Light Treads > --- UTILITY (2) ------ Large Storage Unit Large Storage Unit > --- WEAPON (2) ------- EM Pulse Gun > --- INVENTORY (16) --- Ion Engine Light Ion Engine Light Treads Large Storage Unit Large Matter Pod (150) Targeting Computer Propulsion Shielding Hacking Suite Light Assault Rifle Light Assault Rifle Light Assault Rifle Light Cannon Grenade Launcher Grenade Launcher Peak State ------------ > --- POWER ------------ Light Ion Engine > --- PROPULSION ------- Light Treads Light Treads > --- UTILITY ---------- Large Storage Unit Targeting Computer > --- WEAPON ----------- Light Assault Rifle Light Assault Rifle > --- INVENTORY -------- Light Ion Engine Small Storage Unit Targeting Computer Targeting Computer Hacking Suite EM Pulse Gun Light Assault Rifle Light Assault Rifle [Rating: 8] Favorites ----------- Power Ion Engine Engine Ion Engine Propulsion Light Treads Treads Light Treads Utility Large Storage Unit Storage Large Storage Unit Processor Targeting Computer Weapon Light Assault Rifle Energy Gun EM Pulse Gun Ballistic Gun Light Assault Rifle Launcher Grenade Launcher Build | -11 -10 -10 ------- Run | Scr Mat Min Slots Evolved . | . . . Power . | . . . Propulsion . | . . . Utility . | . . . Weapon . | . . . Parts Attached 25 | 6 12 7 Power 3 | 1 1 1 Engine 3 | 1 1 1 Core . | . . . Reactor . | . . . Propulsion 3 | 2 1 . Treads 3 | 2 1 . Leg . | . . . Wheel . | . . . Hover . | . . . Flight . | . . . Utility 8 | 1 7 . Device . | . . . Storage 7 | 1 6 . Processor 1 | . 1 . Hackware . | . . . Protection . | . . . Artifact . | . . . Weapon 11 | 2 3 6 Energy Gun 2 | . . 2 Energy Cannon . | . . . Ballistic Gun 7 | 2 2 3 Ballistic Cannon . | . . . Launcher 2 | . 1 1 Special Weapon . | . . . Impact Weapon . | . . . Slashing Weapon . | . . . Piercing Weapon . | . . . Special Melee Weapon . | . . . Unidentified Prototypes . | . . . Parts Lost 7 | . 2 5 Power 1 | . . 1 Propulsion 2 | . 1 1 Utility . | . . . Weapon 4 | . 1 3 Highest Loss Streak 5 | . 1 5 Average Slot Usage (%) 99 | . 99 100 Engine 13 | . 13 14 Treads 27 | . 27 28 Storage 25 | . 24 28 Processor 2 | . 2 . Ballistic Gun 27 | . 26 27 Naked Turns . | . . . Heaviest Build 41 | 9 41 39 Greatest Support 40 | 40 40 40 Greatest Overweight (x) 1 | 1 1 . Average Overweight (x) . | . . . Largest Inventory Capacity 16 | 6 16 16 Average Capacity 13 | 5 13 16 Most Carried 16 | 2 16 16 Average Carried 12 | 1 11 15 Final Capacity 16 | 6 16 16 Final Carried 16 | 2 16 14 Class Distribution -------------------- 84% | Mutant 15% | Scavenger-Mutant Dominant Class ---------------- Mutant | -10/Materials Scavenger-Mutant | -10/Mines Resources | -11 -10 -10 ----------- Run | Scr Mat Min Matter Collected 779 | 248 445 86 Remotely . | . . . Salvage Created 790 | . 607 183 Parts 59 | . 43 16 Haulers Intercepted 2 | . 2 . Recyclers Shooed 1 | . 1 . Parts Field Recycled . | . . . Retrieved Matter . | . . . Parts Self-Destructed . | . . . Prevented . | . . . Kills | -11 -10 -10 ------- Run | Scr Mat Min Combat Hostiles Destroyed 18 | . 10 8 Guns 16 | . 10 6 AOE 2 | . . 2 Classes Destroyed 8 | . 8 . Worker 1 | . 1 . Tunneler 1 | . 1 . Hauler 2 | . 2 . Recycler 2 | . 1 1 Operator 1 | . 1 . Watcher 3 | . 3 . Swarmer 11 | . 3 8 Grunt 7 | . 7 . Best Kill Streak 4 | . 2 4 Combat Bots Only 3 | . 2 3 Max Kills in Single Turn 2 | . 1 2 Gunslinging . | . . . Exploded 2 | . . 2 Melee . | . . . Uniques/NPCs Destroyed . | . . . Combat | -11 -10 -10 -------- Run | Scr Mat Min Damage Taken 1302 | . 643 659 Core 257 | . 106 151 Absorbed by Shields . | . . . Core Remaining (%) 100 | 100 . . Volleys Fired 105 | . 87 18 Largest 2 | . 2 2 Hottest 60 | . 40 60 Shots Fired 198 | . 164 34 Gun 196 | . 163 33 Cannon . | . . . Launcher 2 | . 1 1 Special . | . . . Kinetic 192 | . 163 29 Thermal . | . . . Explosive 2 | . 1 1 Electromagnetic 4 | . . 4 Robot Hit Streak 21 | . 21 13 Robot Miss Streak 5 | . 5 3 Penetration Max . | . . . Secondary Targets 2 | . . 2 Max Gunslinging Chain 1 | . . 1 Shots Hit Robots 141 | . 120 21 Core Hits 62 | . 45 17 Critical Hits 1 | . 1 . Critical Kills . | . . . Critical Parts Destroyed 1 | . 1 . Melee Attacks . | . . . Impact . | . . . Slashing . | . . . Piercing . | . . . Sneak Attacks . | . . . Combat Hostiles . | . . . Follow-up Attacks . | . . . Damage Inflicted 1205 | . 933 272 Guns 1119 | . 922 197 Cannons . | . . . Explosions 75 | . . 75 Melee . | . . . Ramming 11 | . 11 . Kinetic 1096 | . 922 174 Thermal . | . . . Explosive 75 | . . 75 Electromagnetic 23 | . . 23 Impact . | . . . Slashing . | . . . Piercing . | . . . Highest Corruption . | . . . Average Corruption . | . . . Corruption Purged . | . . . Overload Shots . | . . . Overflow Damage . | . . . Projectiles . | . . . Explosions . | . . . Melee . | . . . Knockbacks 1 | . 1 . Impact 1 | . 1 . Kinetic . | . . . Secondary . | . . . Self-Inflicted Damage . | . . . Shots . | . . . Rammed 1 | . 1 . Targets Rammed 1 | . 1 . Kicked . | . . . Crushed . | . . . Highest Temperature 20 | . 18 20 Average Temperature 8 | . 8 15 Received Heat Transfer 288 | . 288 . Siege Activations . | . . . Robots Corrupted . | . . . Combat Hostiles . | . . . Parts Fried . | . . . Impact Corruptions . | . . . Robots Melted . | . . . Combat Hostiles . | . . . Parts Melted . | . . . Heat Transferred . | . . . Parts Sabotaged . | . . . Parts Stolen . | . . . Parts Stripped . | . . . Power Chain Reactions . | . . . Missiles Intercepted . | . . . Alert | -11 -10 -10 ------- Run | Scr Mat Min Peak Influence 217 | . 184 217 Initial 22 | . . 22 Average 87 | . 75 165 Maximum Alert Level 1 | . . 1 Low Security (%) 93 | 100 100 61 Level 1 6 | . . 38 Level 2 . | . . . Level 3 . | . . . Level 4 . | . . . Level 5 . | . . . High Security . | . . . Max Security . | . . . Squads Dispatched 1 | . 1 . Investigation . | . . . Extermination . | . . . Reinforcement 1 | . 1 . Assault . | . . . Garrison . | . . . Intercept . | . . . Construction Impeded . | . . . Haulers Reinforced . | . . . Stealth | -11 -10 -10 --------- Run | Scr Mat Min Distress Signals 2 | . 2 . Communications Jammed . | . . . Distress Signals . | . . . Times Spotted 39 | . 28 11 Peak Tracking Total 5 | . 5 3 Tactical Retreats 2 | . 2 . Traps | -11 -10 -10 ------- Run | Scr Mat Min Traps Triggered . | . . . Indirectly . | . . . Trap Hack Attempts . | . . . Triggered . | . . . Disarmed . | . . . Reprogrammed . | . . . Reused . | . . . Traps Extracted . | . . . Installed . | . . . Triggered . | . . . Machines | -11 -10 -10 ---------- Run | Scr Mat Min Machines Disabled . | . . . Max in Single Turn . | . . . Machines Sabotaged . | . . . Garrisons Compromised . | . . . Overloaded Fab Kills . | . . . Fab Network Shutdowns . | . . . Hacking | -11 -10 -10 --------- Run | Scr Mat Min Machines Accessed 5 | . 5 . Terminals 5 | . 5 . Fabricators . | . . . Repair Stations . | . . . Recycling Units . | . . . Scanalyzers . | . . . Garrison Access . | . . . Total Hacks 18 | . 18 . Successful 14 | . 14 . Failed 4 | . 4 . Catastrophic . | . . . Database Lockouts . | . . . Manual 10 | . 10 . Terminals 18 | . 18 . Fabricators . | . . . Repair Stations . | . . . Recycling Units . | . . . Scanalyzers . | . . . Garrison Access . | . . . Terminal Hacks 6 | . 6 . Prototype ID Bank 2 | . 2 . Unreport Threat 1 | . 1 . Locate Traps 2 | . 2 . Zone Layout 1 | . 1 . Fabricator Hacks . | . . . Repair Station Hacks . | . . . Recycling Unit Hacks . | . . . Scanalyzer . | . . . Garrison Access Hacks . | . . . Unauthorized Hacks 8 | . 8 . Terminals 8 | . 8 . Track 5 | . 5 . Botnet 3 | . 3 . Fabricators . | . . . Repair Stations . | . . . Recycling Units . | . . . Scanalyzers . | . . . Garrison Access . | . . . Data Cores Recovered 1 | . 1 . Used 1 | . 1 . Hacking Detections 2 | . 2 . Full Trace Events . | . . . Feedback Events . | . . . Feedback Blocked . | . . . Robot Schematics Acquired . | . . . Robots Built . | . . . Matter . | . . . Time . | . . . Total Robot Build Rating . | . . . Part Schematics Acquired . | . . . Parts Built . | . . . Matter . | . . . Time . | . . . Total Part Build Rating . | . . . Parts Repaired . | . . . Time . | . . . Parts Recycled . | . . . Recycled Matter . | . . . Retrieved Matter . | . . . Retrieved Components . | . . . Parts Scanalyzed . | . . . Part Schematics Acquired . | . . . Parts Damaged . | . . . Bothacking | -11 -10 -10 ------------ Run | Scr Mat Min Used RIF Installer . | . . . Robots Hacked . | . . . Non-combat . | . . . Combat . | . . . Robot Hacks Applied . | . . . Relay Couplers Released . | . . . Robots Rewired . | . . . Allies Hacked . | . . . Hacks Repelled . | . . . Allies | -11 -10 -10 -------- Run | Scr Mat Min Total Allies . | . . . Largest Group . | . . . Highest-Rated Group . | . . . Highest-Rated Ally . | . . . Total Orders . | . . . Ally Attacks . | . . . Total Damage . | . . . Kills . | . . . Allies Corrupted . | . . . Allies Melted . | . . . Intel | -11 -10 -10 ------- Run | Scr Mat Min Robot Analysis Total . | . . . Derelict Logs Recovered . | . . . Drone Launches . | . . . Drone Recoveries . | . . . Exploration | -11 -10 -10 ------------- Run | Scr Mat Min Turns Passed 1868 | 63 1501 304 Spaces Moved 905 | 37 716 152 Core 6 | 6 . . Treads 899 | 31 716 152 Legs . | . . . Wheels . | . . . Hover . | . . . Flight . | . . . Fastest Speed 50 | 50 160 160 Average Speed 160 | 144 161 160 Slowest Speed 180 | 160 180 160 Overloaded Moves . | . . . Propulsion Burnouts . | . . . Robots Hopped . | . . . Cave-ins Triggered . | . . . Exploration Rate (%) 44 | 4 99 31 Regions Visited 2 Branch Regions 1 Pre-discovered Areas . | . . . Known Exits Taken . | . . . Unknown Exits Taken 2 | 1 1 . Scrap Searched . | . . . Spaces Dug . | . . . Terrain Destroyed 14 | . 9 5 Melee . | . . . Projectile . | . . . AOE 14 | . 9 5 Terrain Rammed . | . . . Walls Destroyed . | . . . Machines Disabled . | . . . Actions | -11 -10 -10 --------- Run | Scr Mat Min Total 1160 | 44 928 188 Wait 91 | . 89 2 Move 903 | 36 715 152 Hop . | . . . Pick Up 22 | 2 17 3 Fast Attach 8 | 6 2 . Attach 5 | . 3 2 Detach 1 | . 1 . Swap 12 | . 7 5 Drop 12 | . 6 6 Fire 105 | . 87 18 Melee . | . . . Ram . | . . . Kick . | . . . Crush 1 | . 1 . Escape Stasis . | . . . Rewire . | . . . Trap . | . . . Miscellaneous . | . . . Route ------- -11/Scrapyard -10/Materials (discovered 4 exits: [*Mat x3] / [*Min]) -10/Mines (discovered 1 exit: [*Mat]) History --------- Turn | Location | Event 2 | -11/Scrapyard | Met Revision 17 14 | -11/Scrapyard | Discovered new exit (range 16) 64 | -11/Scrapyard | Entered Materials 300 | -10/Materials | Build established: Mutant 764 | -10/Materials | Discovered new exit (range 14) 836 | -10/Materials | Discovered new exit (range 5) 1236 | -10/Materials | Discovered new exit (range 7) 1337 | -10/Materials | Discovered new exit (range 16) 1565 | -10/Materials | Entered Mines 1574 | -10/Mines | Discovered new exit (range 14) 1744 | -10/Mines | Core integrity fell below 50% 1846 | -10/Mines | Assembled infested the area 1868 | -10/Mines | Core integrity fell below 20% 1869 | -10/Mines | Destroyed by D-53 Grenadier with Mini Grenade Launcher Last Messages --------------- 01750_ Dropped EM Pulse Gun. 01751_ Acquired Lgt. Assault Rifle. 01769_ K-01 Serf collects debris. 01846_ ALERT: Infestation in the mines, dispatching Demolisher response squad. 01857_ C-30 ARC bursts open, deploying its payload. 01857_ D-53 Grenadier unfolds itself. 01857_ Lgt. Assault Rifle destroyed. 01857_ R-06 Scavenger destroyed. 01858_ T-07 Excavator destroyed. 01861_ R-06 Scavenger destroyed. 01862_ The unstable cave ceiling collapses. 01862_ Lgt. Ion Engine crushed. 01862_ U-05 Engineer builds a Wall. 01863_ Lgt. Treads destroyed. 01865_ EM Pulse Gun destroyed. 01866_ U-05 Engineer builds a Wall. 01867_ Lgt. Assault Rifle destroyed. 01869_ The unstable cave ceiling collapses. 01869_ Lgt. Ion Engine destroyed. Map ----- +----------------------------------------------------+ | ??## #?????????????????????????????????????????? | | ??# #?????????????????????????????????????????? | | ??# #?????????????????????????????????????????? | | ??# ##????????????????????????????????????????? | | ???# ####?????????????????????????????????????? | | ???#[ ##????????????????????????????????????? | | ??##% #######??????????????????????????????? | | ??#=* #??????????????????????????????? | | ??# #### #??????????????????????????????? | | ??# ##??# #??????????????????????????????? | | ??# ##???# #??????????????????????????????? | | ??## ###???# #####??????????????????????????? | | ???# # ###????# #??????????????????????????? | | ???#*##%###????###### ###????????????????????????? | | ???# ## #???????????# #????????????????????????? | | ???# #???????????## #????????????????????????? | | ???#### #????????????# #???????????###??????????? | | ???#### #????????????# #?????????? ???????????? | | ??## ##??????###### ###??#????? ????????????? | | ??# ######## ## #???? ?????????????? | | ??# < dd # ????? #?????????????? | | ??# # ##??? #?????????????? | | ??## ########## ## ##?# ##????????????? | | ???############# ## ### #????????????? | | ?????# # u #????????????? | | ?????# ######## # @ * ####### #?????? | | ?##### #####??## ## ???? | | ?# #???##### #?????? | | ?# #?????## ########???????? | | ?# """ """%=#?????# ### ##??????????????? | | ?# """ """ #????## #####??###???????????????? | | ?# """ """ #????# ##???????????????????????? | | ?# =%* #???## ##??????????????????????? | | ?######## ###??## ##?????????????????????? | | ????????#%###### #?????????????????????? | | ????????#[ #????????????????????? | | ????????# #### ## #????????????????????? | | ????????# #??# ### # ##????????????????????? | | ????????# #??# #?## ## ###?????????????????????? | | ????????# #??# #??####? #???????????????????????? | | ????????# #??# #??????? ???????????????????????? | | ????????# ?? ??????? ##??????????????????????? | | ????????###?? ??????? ???????????????????????? | | ????????????? ??????? ???????????????????????? | | ????????????? #???????"" #??????????????????????? | | ????????????? ?????????" #??????????????????????? | | ????????????? ?????????? ???????????????????????? | | ????????????? ??????????????????????????????????? | | ????????????? ??????????????????????????????????? | | ????????????? ??????????????????????????????????? | +----------------------------------------------------+ Best States ------------- Heat Dissipation 25 Energy Generation 10 Energy Capacity 250 Matter Stores 300 Matter Capacity 300 Sight Range 16 Terrain Scan Density 10 Evasion (%) 40 Targeting Accuracy 5 Recoil Reduction 2 Item Schematics ----------------- None Robot Schematics ------------------ None Fabricated ------------ Nothing Alien Tech Used ----------------- None Achievements -------------- None Challenges ------------ None Game ------ Seed SensorTransportSpear Manual? 0 Play Time 00:12:09 Cumulative 323.5 hours Start 2021.02.08 @ 00:09:26 End 2021.02.08 @ 00:19:42 Sessions 1 Manual Loads 0 Difficulty Rogue Special Mode None Game No. 412 Rogue 412 Adventurer 0 Explorer 0 Win Type - Total 35 Types 25/0/7/3/0/0/0/0/0 Lore% 89 Gallery% 85 Achievement% 57 Wizard Run 0 Options --------- ASCII 0 Keyboard 1 Movement Numpad Keybinds 0 Fullscreen 1 Font 24/Smallcaps Map View 76x50 Tactical HUD 1 Map Filters NONE Filters NONE Steam 1 RUN: b2b0cf9c-2beb-4bf7-ad7e-ff62179ea25a